bitfinex-derivatives/quotes_BTCF0:USTF0_20210105
["timestamp","ask_amount","ask_price","bid_price","bid_amount"]
[1609859399458,0.0937,32163.0,32156.0,0.13632608]
[1609859399657,0.13632608,32157.0,32156.0,0.13632608]
[1609859400256,0.73642608,32157.0,32156.0,0.13632608]
[1609859401758,0.83012608,32157.0,32134.0,0.0929]
[1609859401960,0.73642608,32157.0,32131.0,4.7819]
[1609859402958,0.82822608,32157.0,32131.0,4.7819]
[1609859403560,0.13632608,32151.0,32148.0,0.13632608]
[1609859407261,0.2889,32163.0,32148.0,0.13632608]
[1609859407464,0.2889,32163.0,32148.0,0.28656608]
[1609859407663,0.83074581,32169.0,32162.0,0.13632608]
[1609859408965,0.00962608,32166.0,32162.0,0.13632608]
[1609859410366,4.7634,32164.0,32158.0,0.147]
[1609859410767,0.1467,32175.0,32158.0,0.147]
[1609859411169,0.22812608,32173.0,32158.0,0.147]
[1609859411367,0.0287049,32171.0,32158.0,0.147]
[1609859411566,0.13632608,32159.0,32158.0,0.28332608]
[1609859412973,0.00963125,32171.0,32158.0,0.28332608]
[1609859413569,0.13632608,32161.0,32158.0,0.28332608]
[1609859415173,0.13632608,32161.0,32158.0,0.37522608]
[1609859415673,0.13632608,32165.0,32158.0,0.37522608]
[1609859416974,0.093,32164.0,32158.0,0.37522608]
[1609859417174,0.13632608,32165.0,32158.0,0.37522608]
[1609859417376,0.13632608,32165.0,32158.0,0.28332608]
[1609859417775,0.13632608,32165.0,32164.0,0.13632608]
[1609859418777,0.0096393,32173.0,32164.0,0.13632608]
[1609859419178,0.0096393,32173.0,32164.0,4.68092608]
[1609859419777,0.0096393,32173.0,32172.0,0.13632608]
[1609859420381,0.0926,32175.0,32172.0,0.13632608]
[1609859420580,0.14596447,32177.0,32172.0,0.13632608]
[1609859420780,0.13632608,32177.0,32172.0,0.13632608]
[1609859421281,0.0918,32176.0,32172.0,0.13632608]
[1609859421480,0.13632608,32177.0,32172.0,0.13632608]
[1609859421680,0.13632608,32173.0,32172.0,0.13632608]
[1609859422783,0.092,32175.0,32172.0,0.13632608]
[1609859422981,0.02872761,32180.0,32172.0,0.13632608]
[1609859423283,0.02872761,32180.0,32172.0,0.22922608]
[1609859423482,0.02872522,32179.0,32172.0,0.22922608]
[1609859423681,0.1650513,32179.0,32178.0,0.13632608]
[1609859424283,0.13632608,32179.0,32178.0,0.13632608]
[1609859426284,0.22972608,32179.0,32178.0,0.13632608]
[1609859428188,0.13632608,32179.0,32178.0,0.13632608]
[1609859430389,0.13632608,32179.0,32172.0,0.0929]
[1609859430789,0.12908,32182.0,32172.0,0.0929]
[1609859430990,0.02872711,32183.0,32172.0,0.0929]
[1609859431193,0.00963647,32184.0,32172.0,0.0929]
[1609859431591,0.0937,32183.0,32172.0,0.0929]
[1609859431790,0.00963647,32184.0,32179.0,0.13632608]
[1609859432190,0.52666065,32185.0,32183.0,4.8956]
[1609859432390,0.44936065,32185.0,32183.0,4.8956]
[1609859432992,0.68017479,32188.0,32183.0,4.8956]
[1609859433393,0.68017479,32188.0,32184.0,0.0936]
[1609859433794,0.68017479,32188.0,32187.0,0.13632608]
[1609859434192,0.52917479,32188.0,32187.0,0.13632608]
[1609859434392,0.34317479,32188.0,32187.0,0.13632608]
[1609859434593,0.34317479,32188.0,32187.0,0.23632608]
[1609859434793,0.33097479,32188.0,32187.0,0.23632608]
[1609859434992,0.32667479,32188.0,32187.0,0.32922608]
[1609859435192,0.27867479,32188.0,32187.0,0.32922608]
[1609859435392,0.26807479,32188.0,32187.0,0.32922608]
[1609859435992,0.14357479,32188.0,32187.0,0.32922608]
[1609859436893,0.05157479,32188.0,32187.0,0.32922608]
[1609859437894,0.04087479,32188.0,32187.0,0.32922608]
[1609859438495,0.83115427,32203.0,32187.0,0.32922608]
[1609859439598,0.8293599,32214.0,32187.0,0.32922608]
[1609859439799,0.13632608,32213.0,32209.0,0.13632608]
[1609859440000,0.23006608,32213.0,32209.0,0.13632608]
[1609859445104,0.23006608,32213.0,32199.0,0.11703]
[1609859445905,0.23006608,32213.0,32212.0,0.13632608]
[1609859446305,0.23006608,32213.0,32199.0,0.11703]
[1609859447207,0.23006608,32213.0,32190.0,3.5811]
[1609859447907,0.09374,32213.0,32211.0,0.13632608]
[1609859448105,0.0939,32220.0,32211.0,0.13632608]
[1609859448307,0.82569733,32222.0,32211.0,0.13632608]
[1609859448807,0.82501173,32223.0,32211.0,0.13632608]
[1609859449810,0.82501173,32223.0,32215.0,0.13632608]
[1609859450210,0.0938,32221.0,32215.0,0.13632608]
[1609859450411,0.8248961,32224.0,32215.0,0.13632608]
[1609859451913,0.41252608,32216.0,32211.0,0.13632608]
[1609859452112,0.54849608,32216.0,32211.0,0.13632608]
[1609859452915,0.64089608,32216.0,32211.0,0.13632608]
[1609859453116,0.54849608,32216.0,32211.0,0.13632608]
[1609859454318,0.0942,32215.0,32211.0,0.13632608]
[1609859455419,0.54849608,32216.0,32211.0,0.13632608]
[1609859456020,0.41217,32216.0,32211.0,0.13632608]
[1609859457918,0.13632608,32212.0,32211.0,0.13632608]
[1609859458720,0.41217,32216.0,32211.0,0.13632608]
[1609859459121,0.092,32215.0,32211.0,0.13632608]
[1609859459323,0.41217,32216.0,32211.0,0.13632608]
[1609859459924,0.13632608,32215.0,32211.0,0.13632608]
[1609859461428,0.0934,32214.0,32211.0,0.13632608]
[1609859461627,0.13632608,32215.0,32211.0,0.13632608]
[1609859466834,0.0923,32214.0,32211.0,0.13632608]
[1609859467535,0.13632608,32215.0,32211.0,0.13632608]
[1609859468634,0.0921,32214.0,32211.0,0.13632608]
[1609859468835,0.13632608,32215.0,32201.0,0.11795]
[1609859469233,0.13632608,32215.0,32200.0,4.7416]
[1609859469935,0.41217,32216.0,32208.0,0.13632608]
[1609859470136,0.41217,32216.0,32209.0,0.0939]
[1609859470338,0.41217,32216.0,32210.0,0.0927]
[1609859470536,0.41217,32216.0,32208.0,0.13632608]
[1609859471636,0.0924,32215.0,32208.0,0.13632608]
[1609859471836,0.41217,32216.0,32208.0,0.13632608]
[1609859472036,0.13632608,32209.0,32208.0,0.13632608]
[1609859472238,3.5659,32206.0,32184.0,0.0936]
[1609859472438,3.5659,32206.0,32187.0,0.1]
[1609859472637,3.5659,32206.0,32182.0,5.0701]
[1609859473437,0.094,32205.0,32182.0,5.0701]
[1609859473836,3.5659,32206.0,32182.0,5.0701]
[1609859474036,3.5659,32206.0,32183.0,0.13632608]
[1609859474237,0.18443,32209.0,32183.0,0.13632608]
[1609859474438,5.035,32196.0,32168.0,3.9296]
[1609859474638,5.16172,32196.0,32168.0,3.9296]
[1609859474839,5.16172,32196.0,32169.0,0.09046]
[1609859475039,4.5505,32189.0,32169.0,0.09046]
[1609859475241,4.5505,32189.0,32153.0,0.0943]
[1609859475440,0.2936,32188.0,32153.0,0.0943]
[1609859476041,0.2936,32188.0,32164.0,0.13632608]
[1609859476241,5.0611,32177.0,32164.0,0.13632608]
[1609859476441,0.10094,32179.0,32164.0,0.13632608]
[1609859477442,0.10094,32179.0,32165.0,0.0944]
[1609859477642,0.10094,32179.0,32164.0,0.13632608]
[1609859478043,0.13632608,32168.0,32164.0,0.13632608]
[1609859478842,0.10094,32179.0,32165.0,0.0936]
[1609859479042,0.10094,32179.0,32167.0,5.1132]
[1609859480044,0.10094,32179.0,32177.0,0.13632608]
[1609859481547,0.12672,32196.0,32177.0,0.13632608]
[1609859482145,0.25596608,32179.0,32177.0,0.13632608]
[1609859483148,0.11964,32179.0,32177.0,0.13632608]
[1609859483449,0.11964,32179.0,32177.0,0.78432608]
[1609859483647,0.11964,32179.0,32177.0,0.13632608]
[1609859483848,0.11964,32179.0,32178.0,4.0455]
[1609859484447,0.13632608,32184.0,32178.0,4.0455]
[1609859485447,0.13632608,32184.0,32178.0,4.1384]
[1609859485647,0.13632608,32184.0,32178.0,4.0455]
[1609859486049,0.13632608,32184.0,32183.0,0.13632608]
[1609859486248,0.13632608,32184.0,32178.0,4.0455]
[1609859486448,0.13632608,32184.0,32174.0,0.10279]
[1609859488054,0.2795,32195.0,32181.0,0.13632608]
[1609859488752,0.2795,32195.0,32174.0,0.10279]
[1609859489153,0.0945,32187.0,32174.0,0.10279]
[1609859489353,0.0919,32186.0,32172.0,3.7503]
[1609859490055,0.13632608,32178.0,32174.0,0.13632608]
[1609859497858,0.0924,32177.0,32174.0,0.13632608]
[1609859498058,0.13632608,32178.0,32174.0,0.13632608]
[1609859500060,0.13632608,32178.0,32177.0,4.3577]
[1609859508868,0.13632608,32178.0,32172.0,0.13632608]
[1609859509070,4.67,32177.0,32168.0,0.13458]
[1609859509270,0.0933,32176.0,32156.0,3.7901]
[1609859510171,0.0933,32176.0,32161.0,0.13632608]
[1609859510371,0.0941,32175.0,32161.0,0.13632608]
[1609859510570,4.67,32177.0,32161.0,0.13632608]
[1609859510770,0.14251,32175.0,32161.0,0.13632608]
[1609859511972,0.0941,32174.0,32161.0,0.13632608]
[1609859512172,0.13632608,32164.0,32161.0,0.13632608]
[1609859515971,0.13632608,32164.0,32163.0,4.8515]
[1609859516874,0.14251,32175.0,32163.0,4.8515]
[1609859517072,5.638104,32191.0,32163.0,4.8515]
[1609859517272,0.56478295,32184.0,32163.0,4.8515]
[1609859517974,0.2936,32188.0,32163.0,4.8515]
[1609859518176,0.3859,32181.0,32172.0,0.13632608]
[1609859518375,0.2933,32181.0,32172.0,0.13632608]
[1609859519379,0.0944,32180.0,32172.0,0.13632608]
[1609859519577,0.2933,32181.0,32172.0,0.13632608]
[1609859519778,0.2933,32181.0,32163.0,4.8515]
[1609859520178,0.2933,32181.0,32167.0,0.13632608]
[1609859520577,0.0923,32180.0,32167.0,0.13632608]
[1609859520777,0.2933,32181.0,32167.0,0.13632608]
[1609859521479,5.1462,32170.0,32167.0,0.13632608]
[1609859521881,0.2933,32181.0,32167.0,0.13632608]
[1609859522280,0.13632608,32168.0,32167.0,0.13632608]
[1609859522481,0.13632608,32168.0,29008.0,1.0]
[1609859522681,4.6862,32165.0,32144.0,3.7132]
[1609859522883,4.6862,32165.0,32145.0,0.094]
[1609859523082,4.6862,32165.0,32144.0,3.7132]
[1609859523283,0.13632608,32168.0,32142.0,2.21811778]
[1609859523482,0.13632608,32168.0,32142.0,2.36565778]
[1609859523684,4.2555,32157.0,32142.0,0.14754]
[1609859524282,4.2555,32157.0,32143.0,0.22972608]
[1609859524485,4.2555,32157.0,32142.0,0.14754]
[1609859525484,4.2555,32157.0,32143.0,0.0935]
[1609859525682,4.2555,32157.0,32142.0,0.14754]
[1609859526083,0.10437,32162.0,32142.0,0.14754]
[1609859526283,4.78762608,32143.0,32142.0,0.14754]
[1609859528685,4.78762608,32143.0,32140.0,0.13632608]
[1609859530188,4.78762608,32143.0,32124.0,0.092]
[1609859530387,4.6513,32143.0,32134.0,0.13632608]
[1609859530590,4.6513,32143.0,32134.0,0.10221]
[1609859531189,0.0923,32142.0,32134.0,0.10221]
[1609859531889,0.0936,32152.0,32134.0,0.10221]
[1609859532092,5.2087,32153.0,32134.0,0.10221]
[1609859532289,0.13632608,32135.0,32134.0,0.10221]
[1609859532890,4.47212608,32135.0,32134.0,0.10221]
[1609859535395,4.47212608,32135.0,32134.0,0.19461]
[1609859535796,4.47212608,32135.0,32124.0,0.092]
[1609859535996,0.13632608,32135.0,32124.0,0.092]
[1609859536397,4.4966,32138.0,32124.0,0.092]
[1609859536398,0.13632608,32125.0,32124.0,0.092]
[1609859539100,0.13632608,32125.0,32120.0,0.0945]
[1609859540301,0.13632608,32121.0,32120.0,0.0945]
[1609859540501,0.13632608,32121.0,32116.0,0.0925]
[1609859541402,0.13632608,32121.0,32112.0,0.0942]
[1609859541802,0.0922,32120.0,32100.0,2.22979999]
[1609859542002,3.6996,32113.0,32100.0,2.22979999]
[1609859542404,0.13632608,32101.0,32100.0,2.36612607]
[1609859542601,0.68862608,32101.0,32100.0,2.36612607]
[1609859542803,0.68862608,32101.0,32089.0,2.23823119]
[1609859543004,0.13632608,32101.0,32089.0,2.23823119]
[1609859543406,0.13632608,32101.0,32086.0,0.0948]
[1609859544406,0.2899,32117.0,32099.0,0.13632608]
[1609859544407,0.13632608,32105.0,32099.0,0.13632608]
[1609859544606,0.13632608,32105.0,32099.0,0.28044608]
[1609859547907,0.13632608,32105.0,32099.0,0.14412]
[1609859548509,0.13632608,32100.0,32099.0,0.14412]
[1609859549610,0.13632608,32100.0,32094.0,0.13632608]
[1609859550410,0.13632608,32095.0,32094.0,0.13632608]
[1609859550818,0.13632608,32095.0,32078.0,4.5158]
[1609859552412,0.2946,32112.0,32084.0,0.13632608]
[1609859552615,4.1817,32096.0,32084.0,0.13632608]
[1609859552812,4.1817,32096.0,32084.0,0.24902608]
[1609859553013,0.0935,32096.0,32084.0,0.1127]
[1609859553214,8.1695,32097.0,32084.0,0.12077]
[1609859553414,3.9623,32085.0,32077.0,0.09887]
[1609859553614,0.0925,32095.0,32067.0,0.1093]
[1609859553815,0.099,32085.0,32067.0,0.1093]
[1609859554014,4.4864,32068.0,32067.0,0.1093]
[1609859554213,4.4864,32068.0,32044.0,2.60685598]
[1609859554414,0.13632608,32060.0,32044.0,2.60685598]
[1609859555215,0.13632608,32060.0,32047.0,0.0932]
[1609859555414,0.13632608,32060.0,32042.0,0.13632608]
[1609859556016,0.13632608,32060.0,32050.0,0.0947]
[1609859556215,0.12389,32069.0,32050.0,0.0947]
[1609859556417,0.04779,32069.0,32068.0,0.13632608]
[1609859557017,0.284,32084.0,32068.0,0.13632608]
[1609859558517,0.284,32084.0,32075.0,0.13632608]
[1609859558718,0.284,32084.0,32075.0,0.12016]
[1609859560120,4.8301,32078.0,32075.0,0.12016]
[1609859560521,0.13632608,32076.0,32065.0,0.10104]
[1609859560721,0.13632608,32076.0,32062.0,0.13632608]
[1609859561124,3.5106,32068.0,32062.0,0.13632608]
[1609859562026,0.13632608,32076.0,32062.0,0.13632608]
[1609859562226,0.0938,32075.0,32062.0,0.24215608]
[1609859562427,0.13632608,32076.0,32062.0,0.24215608]
[1609859562626,0.13632608,32063.0,32062.0,0.24215608]
[1609859563227,0.11152608,32063.0,32062.0,0.24215608]
[1609859563428,0.284,32084.0,32062.0,0.24215608]
[1609859564429,0.284,32084.0,32062.0,0.33645608]
[1609859564628,0.13632608,32077.0,32074.0,0.13632608]
[1609859565030,0.12322608,32077.0,32074.0,0.13632608]
[1609859565230,0.284,32084.0,32074.0,0.13632608]
[1609859565433,0.284,32084.0,32074.0,0.26870608]
[1609859566633,0.284,32084.0,32083.0,0.13632608]
[1609859566832,0.284,32084.0,32083.0,0.23573608]
[1609859568835,0.2789,32084.0,32083.0,0.23573608]
[1609859569034,0.2789,32084.0,32083.0,3.95803608]
[1609859570436,0.11976,32113.0,32083.0,3.95803608]
[1609859570837,0.00377801,32123.0,32092.0,4.8442]
[1609859571037,0.09807801,32123.0,32092.0,4.8442]
[1609859571237,0.00377801,32123.0,32092.0,4.8442]
[1609859571437,0.00377801,32123.0,32092.0,4.97922]
[1609859571639,0.00378001,32126.0,32092.0,4.97922]
[1609859572238,0.0969824,32128.0,32092.0,4.97922]
[1609859572437,0.0969824,32128.0,32092.0,5.07142]
[1609859572637,0.13632608,32102.0,32101.0,0.13632608]
[1609859575640,0.54250213,32133.0,32101.0,0.24547608]
[1609859575841,0.01825815,32132.0,32107.0,4.4916]
[1609859576240,0.00378971,32132.0,32107.0,4.4916]
[1609859576641,0.00378971,32132.0,32124.0,0.13632608]
[1609859576843,0.00380625,32139.0,32124.0,0.13632608]
[1609859577043,0.00380625,32139.0,32125.0,5.081]
[1609859577442,0.00380625,32139.0,32125.0,5.051]
[1609859577643,0.00381097,32140.0,32125.0,5.051]
[1609859578446,0.00381224,32145.0,32125.0,5.051]
[1609859578643,0.00381224,32145.0,32130.0,0.13632608]
[1609859579045,0.00381224,32145.0,32117.0,0.12442]
[1609859579245,0.14062224,32145.0,32117.0,0.12442]
[1609859579445,0.14062224,32145.0,32111.0,3.5701]
[1609859580046,0.23482224,32145.0,32111.0,3.5701]
[1609859580346,0.14062224,32145.0,32111.0,3.5701]
[1609859580646,0.14062224,32145.0,32122.0,0.13632608]
[1609859580847,0.14062224,32145.0,32111.0,3.5701]
[1609859581149,0.1771,32144.0,32111.0,3.5701]
[1609859581347,0.2714,32144.0,32111.0,3.5701]
[1609859582651,0.2714,32144.0,32113.0,0.13632608]
[1609859584354,0.5559,32144.0,32113.0,0.13632608]
[1609859584654,0.13632608,32114.0,32113.0,0.13632608]
[1609859586659,0.13632608,32114.0,32113.0,0.23072608]
[1609859586859,0.12157,32123.0,32113.0,0.23072608]
[1609859587059,0.12082,32130.0,32113.0,0.23072608]
[1609859588761,0.12082,32130.0,32126.0,0.13632608]
[1609859589361,0.21462,32130.0,32126.0,0.13632608]
[1609859589564,0.12082,32130.0,32126.0,0.13632608]
[1609859589962,0.01860989,32134.0,32126.0,0.13632608]
[1609859590762,0.01860989,32134.0,32130.0,0.13632608]
[1609859590962,0.0935,32133.0,32130.0,0.13632608]
[1609859591162,0.01860989,32134.0,32130.0,0.13632608]
[1609859592664,0.13632608,32131.0,32130.0,0.13632608]
[1609859597871,0.22822608,32131.0,32130.0,0.13632608]
[1609859598073,0.13632608,32131.0,32113.0,4.1959]
[1609859598872,0.0924,32135.0,32127.0,0.13632608]
[1609859599073,0.125,32138.0,32127.0,0.13632608]
[1609859600774,0.125,32138.0,32132.0,0.13632608]
[1609859602877,0.13632608,32133.0,32132.0,0.13632608]
[1609859603578,0.22952608,32133.0,32132.0,0.13632608]
[1609859603777,0.13632608,32133.0,32132.0,0.13632608]
[1609859608286,0.23042608,32133.0,32132.0,0.13632608]
[1609859611892,0.13632608,32133.0,32132.0,0.13632608]
[1609859612993,0.22832608,32133.0,32132.0,0.13632608]
[1609859613795,0.13632608,32133.0,32132.0,0.13632608]
[1609859617100,0.22902608,32133.0,32132.0,0.13632608]
[1609859617302,0.13632608,32133.0,32132.0,0.13632608]
[1609859619909,0.13632608,32133.0,32118.0,4.7334]
[1609859620614,0.13632608,32133.0,32102.0,0.094]
[1609859620811,0.13632608,32133.0,32108.0,0.12805]
[1609859621012,4.5382,32134.0,32119.0,0.13632608]
[1609859621412,4.6303,32134.0,32119.0,0.13632608]
[1609859621612,4.6303,32134.0,32105.0,4.5488]
[1609859622515,0.0921,32134.0,32101.0,0.10915]
[1609859622714,4.5268,32125.0,32101.0,0.10915]
[1609859622914,4.5268,32125.0,32102.0,0.13632608]
[1609859624715,4.5268,32125.0,32090.0,4.915]
[1609859624915,0.0924,32124.0,32100.0,0.13632608]
[1609859625717,4.62554,32125.0,32100.0,0.13632608]
[1609859625916,0.09874,32125.0,32100.0,0.13632608]
[1609859626116,0.09874,32125.0,32102.0,4.203]
[1609859626316,0.09874,32125.0,32102.0,4.2953]
[1609859626518,0.01860321,32123.0,32102.0,4.2953]
[1609859626716,0.01860321,32123.0,32102.0,4.203]
[1609859626916,0.01860321,32123.0,32104.0,0.13632608]
[1609859627317,0.57149522,32123.0,32104.0,0.13632608]
[1609859628219,0.094,32122.0,32104.0,0.13632608]
[1609859628517,0.57149522,32123.0,32104.0,0.13632608]
[1609859628917,0.57149522,32123.0,32102.0,4.2952]
[1609859628918,0.57149522,32123.0,32113.0,0.13632608]
[1609859629819,0.57151964,32124.0,32113.0,0.13632608]
[1609859630721,0.0936,32123.0,32113.0,0.13632608]
[1609859630920,0.0936,32123.0,32122.0,0.13632608]
[1609859631119,0.09874,32125.0,32122.0,0.13632608]
[1609859631519,0.01865445,32131.0,32122.0,0.13632608]
[1609859632120,0.01865445,32131.0,32109.0,0.0924]
[1609859632320,0.37515,32130.0,32106.0,0.14058]
[1609859632720,4.3596,32125.0,32106.0,0.14058]
[1609859632919,0.0924,32124.0,32108.0,0.13632608]
[1609859633120,4.3596,32125.0,32108.0,0.13632608]
[1609859633825,0.57340569,32121.0,32108.0,0.13632608]
[1609859634422,0.69991569,32121.0,32108.0,0.13632608]
[1609859634923,0.13632608,32109.0,32108.0,0.13632608]
[1609859636025,0.23062608,32109.0,32108.0,0.13632608]
[1609859636224,0.13632608,32109.0,32108.0,0.13632608]
[1609859637327,0.22942608,32109.0,32108.0,0.13632608]
[1609859637527,0.22942608,32109.0,32095.0,4.7432]
[1609859638129,0.13632608,32109.0,32095.0,4.7432]
[1609859638629,0.0938,32108.0,32095.0,4.7432]
[1609859638929,0.0938,32108.0,32103.0,0.13632608]
[1609859639329,0.10612,32114.0,32103.0,0.13632608]
[1609859640732,0.0936,32113.0,32103.0,0.13632608]
[1609859640932,0.13632608,32104.0,32093.0,0.13632608]
[1609859642133,0.0943,32103.0,32092.0,0.13502]
[1609859642332,0.0943,32103.0,32085.0,3.8399]
[1609859643034,0.13632608,32086.0,32085.0,3.8399]
[1609859644238,0.13632608,32086.0,32084.0,0.13632608]
[1609859645139,0.13632608,32086.0,32072.0,5.90012281]
[1609859645340,0.13632608,32086.0,32072.0,3.6277]
[1609859645739,0.22892608,32086.0,32072.0,3.6277]
[1609859645940,0.13632608,32086.0,32072.0,3.6277]
[1609859646739,4.1686,32076.0,32070.0,2.27292259]
[1609859646940,0.13632608,32071.0,32070.0,2.40924867]
[1609859647540,0.13632608,32071.0,32070.0,0.13632608]
[1609859648341,0.534,32070.0,32062.0,2.27368761]
[1609859648542,0.13632608,32071.0,32062.0,2.27368761]
[1609859648741,5.095,32067.0,32062.0,2.27368761]
[1609859648944,0.13632608,32071.0,32062.0,2.27368761]
[1609859649143,0.13632608,32063.0,32062.0,2.27368761]
[1609859649342,0.81872608,32063.0,32062.0,2.27368761]
[1609859649544,0.81872608,32063.0,32059.0,0.01071221]
[1609859650244,0.13632608,32063.0,32059.0,0.01071221]
[1609859650850,5.1557,32049.0,32048.0,0.13878]
[1609859651045,0.13632608,32049.0,32041.0,0.1109]
[1609859652245,0.13632608,32049.0,32038.0,3.5412]
[1609859653047,0.13632608,32039.0,32038.0,3.5412]
[1609859653247,0.13632608,32039.0,32036.0,0.13632608]
[1609859653948,0.12466,32048.0,32040.0,4.2777]
[1609859654147,0.1252,32055.0,32040.0,1.3711]
[1609859654546,0.1136,32055.0,32040.0,1.4702]
[1609859654746,4.4834,32076.0,32040.0,1.4702]
[1609859654947,4.766,32076.0,32040.0,1.4702]
[1609859655147,0.25429608,32063.0,32061.0,0.13632608]
[1609859656550,0.11797,32063.0,32061.0,0.13632608]
[1609859656749,0.1306,32070.0,32061.0,0.13632608]
[1609859656948,0.00366746,32090.0,32061.0,0.13632608]
[1609859657149,0.13632608,32076.0,32069.0,0.13632608]
[1609859657348,0.13632608,32076.0,32070.0,5.1023]
[1609859659053,0.13632608,32076.0,32075.0,0.13632608]
[1609859660352,0.13632608,32076.0,32070.0,5.1023]
[1609859661151,0.13632608,32076.0,32075.0,0.13632608]
[1609859661653,0.13632608,32076.0,32070.0,5.1023]
[1609859662252,0.12847,32081.0,32070.0,5.1023]
[1609859663054,0.13632608,32079.0,32077.0,0.13632608]
[1609859664158,0.13632608,32079.0,32070.0,5.1023]
[1609859664355,0.0944,32078.0,32070.0,5.1023]
[1609859665156,0.13632608,32071.0,32070.0,5.23862608]
[1609859665355,0.12847,32081.0,32070.0,5.23862608]
[1609859665757,0.2769,32093.0,32070.0,5.33122608]
[1609859665957,0.01247483,32105.0,32080.0,5.0746]
[1609859666558,0.0036453,32109.0,32080.0,5.0746]
[1609859667159,0.0036453,32109.0,32097.0,0.13632608]
[1609859668160,0.0036453,32109.0,32086.0,0.11298]
[1609859668161,0.2765,32110.0,32086.0,0.11298]
[1609859668960,0.00365437,32114.0,32086.0,0.11298]
[1609859669165,0.13632608,32087.0,32078.0,0.12665]
[1609859669363,0.13632608,32087.0,32071.0,0.13632608]
[1609859670362,0.0942,32086.0,32071.0,0.13632608]
[1609859670763,0.13632608,32087.0,32071.0,0.13632608]
[1609859671061,0.13632608,32072.0,32071.0,0.13632608]
[1609859671464,0.13632608,32072.0,32071.0,0.23032608]
[1609859672061,0.10182,32083.0,32071.0,0.23032608]
[1609859673163,0.10182,32083.0,32078.0,0.13632608]
[1609859673562,0.09933,32090.0,32078.0,0.13632608]
[1609859673962,4.9128,32092.0,32078.0,0.13632608]
[1609859675164,4.9128,32092.0,32088.0,0.13632608]
[1609859675466,0.00362879,32100.0,32088.0,0.13632608]
[1609859676065,0.00362879,32100.0,32092.0,3.7641]
[1609859676766,0.01237465,32103.0,32092.0,3.85678]
[1609859677166,0.01237465,32103.0,32102.0,0.13632608]
[1609859677968,0.13632608,32107.0,32102.0,0.13632608]
[1609859678668,0.13632608,32107.0,32092.0,3.85678]
[1609859679068,0.13632608,32098.0,32094.0,0.13632608]
[1609859680267,0.13632608,32098.0,32095.0,0.0929]
[1609859680667,0.13727,32109.0,32094.0,0.13632608]
[1609859680867,0.13727,32109.0,32095.0,4.4106]
[1609859681067,0.13727,32109.0,32107.0,0.13632608]
[1609859682170,0.13727,32109.0,32095.0,4.4106]
[1609859682769,0.13727,32109.0,32092.0,0.09268]
[1609859682970,0.13727,32109.0,32084.0,3.7114]
[1609859683169,0.13727,32109.0,32091.0,0.13632608]
[1609859684069,0.01237259,32113.0,32091.0,0.22832608]
[1609859684471,0.01236685,32114.0,32091.0,0.22832608]
[1609859685069,0.13632608,32099.0,32098.0,0.13632608]
[1609859685872,0.13632608,32099.0,32090.0,4.3305]
[1609859687070,0.13632608,32099.0,32097.0,0.13632608]
[1609859687272,0.0926,32098.0,32097.0,0.13632608]
[1609859687471,0.13632608,32099.0,32097.0,0.13632608]
[1609859690178,0.0937,32098.0,32097.0,0.13632608]
[1609859690576,0.13632608,32099.0,32092.0,0.14539]
[1609859690877,0.16238165,32115.0,32092.0,0.14539]
[1609859691077,0.13632608,32101.0,32100.0,0.13632608]
[1609859691678,0.22862608,32101.0,32100.0,0.13632608]
[1609859691979,0.22862608,32101.0,32090.0,4.3305]
[1609859692277,0.22862608,32101.0,32084.0,0.13953]
[1609859692780,0.22862608,32101.0,32091.0,4.9745]
[1609859692981,0.22862608,32101.0,32069.0,0.10066]
[1609859693181,0.0923,32101.0,32097.0,0.13632608]
[1609859693380,0.0923,32101.0,32086.0,4.3305]
[1609859693579,0.12124,32105.0,32086.0,4.3305]
[1609859694481,0.0945,32104.0,32086.0,4.3305]
[1609859694883,0.12124,32105.0,32086.0,4.3305]
[1609859695083,0.12124,32105.0,32089.0,0.13632608]
[1609859695784,0.0938,32104.0,32089.0,0.13632608]
[1609859695985,0.0938,32104.0,32092.0,5.0172]
[1609859697186,0.0938,32104.0,32093.0,0.13632608]
[1609859698690,0.12124,32105.0,32093.0,0.13632608]
[1609859699188,0.13632608,32094.0,32093.0,0.13632608]
[1609859700291,0.22982608,32094.0,32093.0,0.13632608]
[1609859700891,0.13632608,32094.0,32093.0,0.13632608]
[1609859701791,0.22842608,32094.0,32093.0,0.13632608]
[1609859702191,0.13632608,32094.0,32093.0,0.13632608]
[1609859703191,0.22882608,32094.0,32093.0,0.13632608]
[1609859703392,0.13632608,32094.0,32093.0,0.13632608]
[1609859703591,0.13632608,32094.0,32093.0,0.79932608]
[1609859704194,0.13368,32097.0,32093.0,0.79932608]
[1609859704392,0.13368,32097.0,32093.0,0.13632608]
[1609859704593,0.13368,32097.0,32096.0,3.6483]
[1609859704792,0.62273702,32104.0,32096.0,3.6483]
[1609859705194,0.62273702,32104.0,32103.0,0.13632608]
[1609859705993,0.62273702,32104.0,32103.0,0.75172608]
[1609859707997,0.13632608,32106.0,32103.0,0.75172608]
[1609859709198,0.13632608,32110.0,32103.0,0.75172608]
[1609859711200,0.13632608,32110.0,32109.0,0.13632608]
[1609859711799,0.22912608,32110.0,32109.0,0.13632608]
[1609859712303,0.13632608,32110.0,32109.0,0.13632608]
[1609859713504,0.13632608,32110.0,32103.0,0.6154]
[1609859713704,0.13632608,32110.0,32096.0,0.12532]
[1609859714706,0.0943,32109.0,32096.0,0.12532]
[1609859714907,0.0945,32108.0,32096.0,0.12532]
[1609859715105,0.13632608,32110.0,32096.0,0.12532]
[1609859715305,0.63215126,32112.0,32106.0,0.13632608]
[1609859715505,0.63215126,32112.0,32096.0,0.12532]
[1609859716505,0.0943,32111.0,32096.0,0.12532]
[1609859716807,0.63215126,32112.0,32096.0,0.12532]
[1609859717206,0.63215126,32112.0,32105.0,0.13632608]
[1609859718211,0.58215126,32112.0,32105.0,0.13632608]
[1609859719214,0.13632608,32110.0,32105.0,0.13632608]
[1609859719412,0.13632608,32110.0,32105.0,5.02052608]
[1609859719613,0.45815677,32112.0,32105.0,5.02052608]
[1609859719812,0.0926,32111.0,32105.0,5.02052608]
[1609859720015,0.45815677,32112.0,32105.0,5.02052608]
[1609859720215,0.13716,32113.0,32105.0,5.02052608]
[1609859720412,0.77544664,32117.0,32105.0,5.02052608]
[1609859720612,0.77544664,32117.0,32106.0,0.0925]
[1609859721212,0.77544664,32117.0,32116.0,0.13632608]
[1609859721613,0.77653056,32120.0,32116.0,0.13632608]